[Event "Titled Tuesday Blitz October 31 Early 2023"]
[White "Kuzhylnyi, Oleksandr"]
[Black "Haitin, Ilja"]
[WhiteFideId "34110500"]
[BlackFideId "4501764"]
[WhiteElo "2640"]
[BlackElo "2410"]
[Result "0-1"]
[Round "6"]
[TimeControl "180+1"]
[Date "2023.10.31"]
[WhiteClock "0:00:10"]
[BlackClock "0:00:07"]
[Board "72"]

1. b3 {[%clk 0:03:00]}  e5 {[%clk 0:02:55]} 2. Bb2 {[%clk 0:03:00]}  Nc6 {[%clk 0:02:53]} 3. e3 {[%clk 0:03:00]}  d5 {[%clk 0:02:53]} 4. Bb5 {[%clk 0:03:00]}  Ne7 {[%clk 0:02:53]} 5. Bxe5 {[%clk 0:02:54]}  a6 {[%clk 0:02:53]} 6. Bxc6+ {[%clk 0:02:54]}  Nxc6 {[%clk 0:02:54]} 7. Bb2 {[%clk 0:02:54]}  Qg5 {[%clk 0:02:49]} 8. Qf3 {[%clk 0:02:45]}  Bg4 {[%clk 0:02:40]} 9. Qf4 {[%clk 0:02:41]}  Qxf4 {[%clk 0:02:37]} 10. exf4 {[%clk 0:02:41]}  O-O-O {[%clk 0:02:19]} 11. f3 {[%clk 0:02:41]}  Re8+ {[%clk 0:02:17]} 12. Ne2 {[%clk 0:02:40]}  Bf5 {[%clk 0:02:09]} 13. d3 {[%clk 0:02:27]}  Nb4 {[%clk 0:02:09]} 14. Na3 {[%clk 0:02:27]}  Nxd3+ {[%clk 0:01:57]} 15. cxd3 {[%clk 0:02:25]}  Bxd3 {[%clk 0:01:58]} 16. O-O-O {[%clk 0:02:15]}  Bxe2 {[%clk 0:01:53]} 17. Rxd5 {[%clk 0:02:15]}  Bd6 {[%clk 0:01:49]} 18. Kb1 {[%clk 0:01:31]}  Bxf4 {[%clk 0:01:24]} 19. Nc2 {[%clk 0:01:31]}  Bb5 {[%clk 0:01:19]} 20. Rf5 {[%clk 0:01:28]}  Bh6 {[%clk 0:01:10]} 21. Rxf7 {[%clk 0:01:25]}  Bd3 {[%clk 0:01:04]} 22. Rd1 {[%clk 0:01:16]}  Bg6 {[%clk 0:00:59]} 23. Rfd7 {[%clk 0:01:03]}  Re2 {[%clk 0:00:54]} 24. R7d3 {[%clk 0:01:03]}  Bxd3 {[%clk 0:00:42]} 25. Rxd3 {[%clk 0:01:04]}  Rd8 {[%clk 0:00:37]} 26. Rxd8+ {[%clk 0:01:02]}  Kxd8 {[%clk 0:00:38]} 27. g4 {[%clk 0:00:59]}  Rxh2 {[%clk 0:00:34]} 28. Nd4 {[%clk 0:00:55]}  Kd7 {[%clk 0:00:19]} 29. Nf5 {[%clk 0:00:45]}  Rf2 {[%clk 0:00:19]} 30. Nh4 {[%clk 0:00:18]}  Bg5 {[%clk 0:00:17]} 31. Nf5 {[%clk 0:00:19]}  g6 {[%clk 0:00:12]} 32. Ng3 {[%clk 0:00:13]}  Rxf3 {[%clk 0:00:11]} 33. Ne4 {[%clk 0:00:14]}  Be7 {[%clk 0:00:08]} 34. Bc1 {[%clk 0:00:14]}  h5 {[%clk 0:00:08]} 35. gxh5 {[%clk 0:00:12]}  gxh5 {[%clk 0:00:09]} 36. Kc2 {[%clk 0:00:12]}  h4 {[%clk 0:00:09]} 37. Kd1 {[%clk 0:00:11]}  h3 {[%clk 0:00:07]} 38. Ke2 {[%clk 0:00:12]}  Rf8 {[%clk 0:00:06]} 39. Nf2 {[%clk 0:00:08]}  h2 {[%clk 0:00:05]} 40. Nh1 {[%clk 0:00:08]}  Rg8 {[%clk 0:00:04]} 41. Bf4 {[%clk 0:00:04]}  Rg1 {[%clk 0:00:04]} 42. Nf2 {[%clk 0:00:05]}  h1=Q {[%clk 0:00:03]} 43. Nxh1 {[%clk 0:00:05]}  Rxh1 {[%clk 0:00:04]} 44. Kd3 {[%clk 0:00:06]}  Ra1 {[%clk 0:00:03]} 45. a4 {[%clk 0:00:06]}  Rf1 {[%clk 0:00:03]} 46. Be3 {[%clk 0:00:06]}  Rf3 {[%clk 0:00:03]} 47. Ke2 {[%clk 0:00:07]}  Rh3 {[%clk 0:00:03]} 48. Kd2 {[%clk 0:00:06]}  Kc6 {[%clk 0:00:03]} 49. Ke2 {[%clk 0:00:06]}  Bd6 {[%clk 0:00:04]} 50. Kd2 {[%clk 0:00:05]}  Kd5 {[%clk 0:00:04]} 51. Ke2 {[%clk 0:00:05]}  b5 {[%clk 0:00:04]} 52. axb5 {[%clk 0:00:05]}  axb5 {[%clk 0:00:05]} 53. Kd2 {[%clk 0:00:05]}  c5 {[%clk 0:00:05]} 54. Ke2 {[%clk 0:00:04]}  Rxe3+ {[%clk 0:00:05]} 55. Kxe3 {[%clk 0:00:05]}  c4 {[%clk 0:00:06]} 56. bxc4+ {[%clk 0:00:06]}  Kxc4 {[%clk 0:00:06]} 57. Kd2 {[%clk 0:00:07]}  Kb3 {[%clk 0:00:06]} 58. Kc1 {[%clk 0:00:07]}  Ka2 {[%clk 0:00:07]} 59. Kc2 {[%clk 0:00:07]}  b4 {[%clk 0:00:07]} 60. Kd3 {[%clk 0:00:08]}  b3 {[%clk 0:00:07]} 61. Kc3 {[%clk 0:00:09]}  b2 {[%clk 0:00:07]} 62. Kc4 {[%clk 0:00:10]}  b1=Q {[%clk 0:00:07]} 63. Kd5 {[%clk 0:00:10]}  Qb5+ {[%clk 0:00:07]} 0-1


[Site "https://www.chess.com"]

[Event "Titled Tuesday Blitz October 31 Early 2023"]
[White "sjoerd893"]
[Black "Costachi, Mihnea"]
[BlackFideId "1217518"]
[WhiteElo "2525"]
[BlackElo "2736"]
[Result "0-1"]
[Round "6"]
[TimeControl "180+1"]
[Date "2023.10.31"]
[WhiteClock "0:00:00"]
[BlackClock "0:01:49"]
[Board "80"]

1. e4 {[%clk 0:03:00]}  c5 {[%clk 0:02:57]} 2. Nf3 {[%clk 0:03:00]}  Nc6 {[%clk 0:02:56]} 3. d4 {[%clk 0:03:00]}  cxd4 {[%clk 0:02:57]} 4. Nxd4 {[%clk 0:03:01]}  Nf6 {[%clk 0:02:57]} 5. Nc3 {[%clk 0:03:01]}  d6 {[%clk 0:02:58]} 6. Bg5 {[%clk 0:02:57]}  e6 {[%clk 0:02:57]} 7. Qd2 {[%clk 0:02:56]}  Be7 {[%clk 0:02:57]} 8. O-O-O {[%clk 0:02:53]}  a6 {[%clk 0:02:55]} 9. h4 {[%clk 0:02:51]}  Bd7 {[%clk 0:02:55]} 10. f3 {[%clk 0:02:51]}  b5 {[%clk 0:02:54]} 11. g4 {[%clk 0:02:50]}  Ne5 {[%clk 0:02:49]} 12. Bd3 {[%clk 0:02:40]}  Qb6 {[%clk 0:02:43]} 13. Nce2 {[%clk 0:02:39]}  h6 {[%clk 0:02:38]} 14. Be3 {[%clk 0:02:31]}  Qc7 {[%clk 0:02:38]} 15. g5 {[%clk 0:02:30]}  Nh5 {[%clk 0:02:33]} 16. gxh6 {[%clk 0:02:27]}  gxh6 {[%clk 0:02:34]} 17. Bxh6 {[%clk 0:02:24]}  Rc8 {[%clk 0:02:25]} 18. Bg5 {[%clk 0:02:10]}  f6 {[%clk 0:02:21]} 19. Be3 {[%clk 0:02:00]}  b4 {[%clk 0:02:18]} 20. Kb1 {[%clk 0:01:32]}  Nc4 {[%clk 0:02:18]} 21. Bxc4 {[%clk 0:01:32]}  Qxc4 {[%clk 0:02:19]} 22. Rhg1 {[%clk 0:01:17]}  a5 {[%clk 0:02:18]} 23. Ng3 {[%clk 0:00:53]}  Nxg3 {[%clk 0:02:14]} 24. Rxg3 {[%clk 0:00:52]}  Rxh4 {[%clk 0:02:14]} 25. b3 {[%clk 0:00:29]}  Qc3 {[%clk 0:02:12]} 26. Rg8+ {[%clk 0:00:29]}  Kf7 {[%clk 0:02:07]} 27. Rxc8 {[%clk 0:00:28]}  Qxd2 {[%clk 0:02:05]} 28. Bxd2 {[%clk 0:00:27]}  Bxc8 {[%clk 0:02:04]} 29. Nc6 {[%clk 0:00:27]}  Ba6 {[%clk 0:01:57]} 30. Nxa5 {[%clk 0:00:26]}  Be2 {[%clk 0:01:57]} 31. Re1 {[%clk 0:00:25]}  Bxf3 {[%clk 0:01:58]} 32. Nc6 {[%clk 0:00:20]}  Bxe4 {[%clk 0:01:58]} 33. Nxb4 {[%clk 0:00:20]}  f5 {[%clk 0:01:56]} 34. a4 {[%clk 0:00:19]}  e5 {[%clk 0:01:51]} 35. a5 {[%clk 0:00:19]}  Ke6 {[%clk 0:01:51]} 36. a6 {[%clk 0:00:19]}  Rh8 {[%clk 0:01:52]} 37. Be3 {[%clk 0:00:18]}  Ra8 {[%clk 0:01:50]} 38. Bb6 {[%clk 0:00:17]}  d5 {[%clk 0:01:48]} 39. Nc6 {[%clk 0:00:03]}  Rxa6 {[%clk 0:01:47]} 40. Nxe7 {[%clk 0:00:03]}  Rxb6 {[%clk 0:01:48]} 41. Ng8 {[%clk 0:00:02]}  Rxb3+ {[%clk 0:01:48]} 42. Kc1 {[%clk 0:00:00]}  Rh3 {[%clk 0:01:49]} 0-1


[Site "https://www.chess.com"]

[Event "Titled Tuesday Blitz October 31 Early 2023"]
[White "Panda Sambit"]
[Black "Leiva, Gianmarco"]
[WhiteFideId "25091794"]
[BlackFideId "3804399"]
[WhiteElo "2491"]
[BlackElo "2670"]
[Result "0-1"]
[Round "6"]
[TimeControl "180+1"]
[Date "2023.10.31"]
[WhiteClock "0:00:36"]
[BlackClock "0:00:08"]
[Board "83"]

1. d4 {[%clk 0:03:00]}  Nf6 {[%clk 0:02:58]} 2. Nf3 {[%clk 0:02:57]}  d5 {[%clk 0:02:58]} 3. Bf4 {[%clk 0:02:56]}  e6 {[%clk 0:02:56]} 4. e3 {[%clk 0:02:56]}  Bd6 {[%clk 0:02:57]} 5. Nbd2 {[%clk 0:02:54]}  O-O {[%clk 0:02:56]} 6. c3 {[%clk 0:02:52]}  c5 {[%clk 0:02:56]} 7. Bg3 {[%clk 0:02:51]}  Qc7 {[%clk 0:02:55]} 8. Ne5 {[%clk 0:02:47]}  b6 {[%clk 0:02:53]} 9. Bd3 {[%clk 0:02:47]}  Ba6 {[%clk 0:02:52]} 10. Bc2 {[%clk 0:02:44]}  Nc6 {[%clk 0:02:41]} 11. f4 {[%clk 0:02:43]}  Ne7 {[%clk 0:02:42]} 12. Bf2 {[%clk 0:02:40]}  Bb7 {[%clk 0:02:18]} 13. Qf3 {[%clk 0:02:37]}  Ne8 {[%clk 0:01:44]} 14. Qh3 {[%clk 0:02:22]}  f5 {[%clk 0:01:42]} 15. Ndf3 {[%clk 0:02:21]}  Nf6 {[%clk 0:01:36]} 16. g4 {[%clk 0:02:07]}  fxg4 {[%clk 0:01:16]} 17. Nxg4 {[%clk 0:02:04]}  Nf5 {[%clk 0:01:16]} 18. Ng5 {[%clk 0:01:53]}  Qe7 {[%clk 0:01:14]} 19. Nxf6+ {[%clk 0:01:45]}  gxf6 {[%clk 0:01:14]} 20. Nxe6 {[%clk 0:01:45]}  Qxe6 {[%clk 0:01:05]} 21. Bxf5 {[%clk 0:01:43]}  Qe7 {[%clk 0:01:06]} 22. Rg1+ {[%clk 0:01:41]}  Kh8 {[%clk 0:01:06]} 23. O-O-O {[%clk 0:01:36]}  cxd4 {[%clk 0:01:04]} 24. exd4 {[%clk 0:01:31]}  Bc8 {[%clk 0:00:58]} 25. Rde1 {[%clk 0:01:29]}  Qf7 {[%clk 0:00:55]} 26. Be6 {[%clk 0:01:25]}  Bxe6 {[%clk 0:00:54]} 27. Rxe6 {[%clk 0:01:25]}  Bxf4+ {[%clk 0:00:51]} 28. Kb1 {[%clk 0:01:26]}  Rae8 {[%clk 0:00:45]} 29. Rxe8 {[%clk 0:01:25]}  Rxe8 {[%clk 0:00:46]} 30. Qf5 {[%clk 0:01:22]}  Bxh2 {[%clk 0:00:44]} 31. Rh1 {[%clk 0:01:21]}  Bd6 {[%clk 0:00:34]} 32. Bh4 {[%clk 0:01:21]}  Re6 {[%clk 0:00:33]} 33. Bg5 {[%clk 0:01:10]}  Kg8 {[%clk 0:00:30]} 34. Rh6 {[%clk 0:01:08]}  Be7 {[%clk 0:00:04]} 35. a3 {[%clk 0:01:00]}  Re1+ {[%clk 0:00:04]} 36. Ka2 {[%clk 0:01:00]}  fxg5 {[%clk 0:00:05]} 37. Qc8+ {[%clk 0:00:51]}  Kg7 {[%clk 0:00:05]} 38. Qh3 {[%clk 0:00:49]}  Kg8 {[%clk 0:00:05]} 39. Qc8+ {[%clk 0:00:48]}  Bf8 {[%clk 0:00:06]} 40. Rd6 {[%clk 0:00:42]}  Re8 {[%clk 0:00:05]} 41. Rd8 {[%clk 0:00:41]}  Rxd8 {[%clk 0:00:06]} 42. Qxd8 {[%clk 0:00:42]}  h6 {[%clk 0:00:06]} 43. a4 {[%clk 0:00:40]}  g4 {[%clk 0:00:06]} 44. Qh4 {[%clk 0:00:40]}  Qg6 {[%clk 0:00:06]} 45. Qg3 {[%clk 0:00:39]}  Bd6 {[%clk 0:00:06]} 46. Qg2 {[%clk 0:00:39]}  g3 {[%clk 0:00:07]} 47. Qxd5+ {[%clk 0:00:36]}  Qf7 {[%clk 0:00:08]} 0-1


[Site "https://www.chess.com"]

[Event "Titled Tuesday Blitz October 31 Early 2023"]
[White "Kim, Sergey"]
[Black "Buchenau, Frank"]
[WhiteFideId "13700570"]
[BlackFideId "4604350"]
[WhiteElo "2608"]
[BlackElo "2460"]
[Result "1/2-1/2"]
[Round "6"]
[TimeControl "180+1"]
[Date "2023.10.31"]
[WhiteClock "0:00:46"]
[BlackClock "0:00:06"]
[Board "86"]

1. d4 {[%clk 0:03:00]}  e6 {[%clk 0:03:00]} 2. c4 {[%clk 0:03:00]}  Nf6 {[%clk 0:03:00]} 3. Nc3 {[%clk 0:02:57]}  Bb4 {[%clk 0:03:00]} 4. Qc2 {[%clk 0:02:57]}  c5 {[%clk 0:02:59]} 5. dxc5 {[%clk 0:02:56]}  O-O {[%clk 0:02:59]} 6. Nf3 {[%clk 0:02:57]}  Na6 {[%clk 0:02:57]} 7. Bd2 {[%clk 0:02:56]}  Nxc5 {[%clk 0:02:57]} 8. e3 {[%clk 0:02:57]}  b6 {[%clk 0:02:53]} 9. Be2 {[%clk 0:02:57]}  Bb7 {[%clk 0:02:52]} 10. O-O {[%clk 0:02:57]}  Rc8 {[%clk 0:02:49]} 11. Rfd1 {[%clk 0:02:56]}  Nce4 {[%clk 0:02:39]} 12. Be1 {[%clk 0:02:52]}  Bxc3 {[%clk 0:02:31]} 13. Bxc3 {[%clk 0:02:51]}  b5 {[%clk 0:02:19]} 14. cxb5 {[%clk 0:02:45]}  Ng4 {[%clk 0:01:50]} 15. Rf1 {[%clk 0:02:40]}  Qc7 {[%clk 0:01:47]} 16. h3 {[%clk 0:02:18]}  Nxc3 {[%clk 0:01:35]} 17. hxg4 {[%clk 0:02:15]}  Nxe2+ {[%clk 0:01:03]} 18. Qxe2 {[%clk 0:02:13]}  Qc2 {[%clk 0:01:00]} 19. Rfe1 {[%clk 0:02:11]}  Bxf3 {[%clk 0:00:43]} 20. gxf3 {[%clk 0:02:08]}  f5 {[%clk 0:00:37]} 21. Rad1 {[%clk 0:01:45]}  fxg4 {[%clk 0:00:27]} 22. fxg4 {[%clk 0:01:45]}  Qg6 {[%clk 0:00:24]} 23. Rxd7 {[%clk 0:01:33]}  Rc2 {[%clk 0:00:22]} 24. Qd1 {[%clk 0:01:24]}  Rcxf2 {[%clk 0:00:13]} 25. Rd8 {[%clk 0:01:23]}  h5 {[%clk 0:00:11]} 26. Rxf8+ {[%clk 0:01:16]}  Rxf8 {[%clk 0:00:12]} 27. Rf1 {[%clk 0:01:11]}  Rxf1+ {[%clk 0:00:08]} 28. Kxf1 {[%clk 0:01:11]}  hxg4 {[%clk 0:00:06]} 29. Qd8+ {[%clk 0:01:04]}  Kh7 {[%clk 0:00:06]} 30. Qh4+ {[%clk 0:01:04]}  Kg8 {[%clk 0:00:06]} 31. Qd8+ {[%clk 0:01:01]}  Kh7 {[%clk 0:00:06]} 32. Qh4+ {[%clk 0:00:46]}  Kg8 {[%clk 0:00:06]} 33. Qd8+ {[%clk 0:00:46]} 1/2-1/2


[Site "https://www.chess.com"]

[Event "Titled Tuesday Blitz October 31 Early 2023"]
[White "Manukyan, Sargis A."]
[Black "Avalos Parra, Joao"]
[WhiteFideId "13303970"]
[BlackFideId "3402541"]
[WhiteElo "2598"]
[BlackElo "2358"]
[Result "1-0"]
[Round "6"]
[TimeControl "180+1"]
[Date "2023.10.31"]
[WhiteClock "0:01:22"]
[BlackClock "0:00:09"]
[Board "89"]

1. d4 {[%clk 0:03:00]}  d5 {[%clk 0:02:56]} 2. c4 {[%clk 0:03:00]}  e6 {[%clk 0:02:57]} 3. Nc3 {[%clk 0:03:01]}  Nf6 {[%clk 0:02:57]} 4. cxd5 {[%clk 0:03:01]}  exd5 {[%clk 0:02:57]} 5. Bg5 {[%clk 0:03:02]}  c6 {[%clk 0:02:57]} 6. e3 {[%clk 0:03:02]}  h6 {[%clk 0:02:58]} 7. Bh4 {[%clk 0:03:01]}  Be7 {[%clk 0:02:58]} 8. Bd3 {[%clk 0:03:01]}  O-O {[%clk 0:02:59]} 9. Nf3 {[%clk 0:03:02]}  Re8 {[%clk 0:02:57]} 10. O-O {[%clk 0:03:02]}  Ne4 {[%clk 0:02:53]} 11. Bg3 {[%clk 0:02:56]}  Nd6 {[%clk 0:02:46]} 12. Ne5 {[%clk 0:02:56]}  Nd7 {[%clk 0:02:46]} 13. Qc2 {[%clk 0:02:54]}  Nf6 {[%clk 0:02:40]} 14. f3 {[%clk 0:02:41]}  Be6 {[%clk 0:02:34]} 15. b4 {[%clk 0:02:39]}  a5 {[%clk 0:02:33]} 16. b5 {[%clk 0:02:38]}  Rc8 {[%clk 0:02:32]} 17. bxc6 {[%clk 0:02:38]}  Rxc6 {[%clk 0:02:33]} 18. Nxc6 {[%clk 0:02:37]}  bxc6 {[%clk 0:02:33]} 19. Na4 {[%clk 0:02:37]}  Nc4 {[%clk 0:02:03]} 20. Bxc4 {[%clk 0:02:33]}  dxc4 {[%clk 0:02:04]} 21. Nc3 {[%clk 0:02:30]}  Bb4 {[%clk 0:01:59]} 22. Rfd1 {[%clk 0:02:25]}  Nd5 {[%clk 0:01:49]} 23. Nxd5 {[%clk 0:02:19]}  cxd5 {[%clk 0:01:48]} 24. a3 {[%clk 0:02:15]}  Be7 {[%clk 0:01:43]} 25. e4 {[%clk 0:02:13]}  h5 {[%clk 0:01:40]} 26. e5 {[%clk 0:02:10]}  h4 {[%clk 0:01:39]} 27. Be1 {[%clk 0:02:09]}  g6 {[%clk 0:01:40]} 28. Qa4 {[%clk 0:02:06]}  Bf5 {[%clk 0:01:34]} 29. Qxa5 {[%clk 0:02:05]}  Qc8 {[%clk 0:01:28]} 30. Bb4 {[%clk 0:02:05]}  Bg5 {[%clk 0:01:27]} 31. Bd2 {[%clk 0:02:04]}  Bd8 {[%clk 0:01:23]} 32. Qxd5 {[%clk 0:02:03]}  Bb6 {[%clk 0:01:24]} 33. Be3 {[%clk 0:01:58]}  c3 {[%clk 0:01:24]} 34. Rac1 {[%clk 0:01:56]}  c2 {[%clk 0:01:24]} 35. Re1 {[%clk 0:01:52]}  Rd8 {[%clk 0:01:19]} 36. Qb3 {[%clk 0:01:52]}  Qa6 {[%clk 0:01:13]} 37. d5 {[%clk 0:01:48]}  Ba5 {[%clk 0:01:09]} 38. Rf1 {[%clk 0:01:37]}  Qe2 {[%clk 0:01:02]} 39. Rf2 {[%clk 0:01:35]}  Qa6 {[%clk 0:00:49]} 40. Rfxc2 {[%clk 0:01:33]}  Bxc2 {[%clk 0:00:43]} 41. Rxc2 {[%clk 0:01:34]}  h3 {[%clk 0:00:43]} 42. Qc4 {[%clk 0:01:31]}  Qb7 {[%clk 0:00:41]} 43. d6 {[%clk 0:01:25]}  hxg2 {[%clk 0:00:37]} 44. Kxg2 {[%clk 0:01:26]}  Re8 {[%clk 0:00:26]} 45. Qc6 {[%clk 0:01:22]}  Qb8 {[%clk 0:00:21]} 46. d7 {[%clk 0:01:20]}  Rd8 {[%clk 0:00:13]} 47. e6 {[%clk 0:01:21]}  fxe6 {[%clk 0:00:08]} 48. Qxe6+ {[%clk 0:01:22]}  Kg7 {[%clk 0:00:08]} 49. Bd4+ {[%clk 0:01:21]}  Kh6 {[%clk 0:00:09]} 50. Qh3+ {[%clk 0:01:21]}  Kg5 {[%clk 0:00:09]} 51. Qg4+ {[%clk 0:01:22]}  Kh6 {[%clk 0:00:09]} 52. Qh4# {[%clk 0:01:22]} 1-0


[Site "https://www.chess.com"]

[Event "Titled Tuesday Blitz October 31 Early 2023"]
[White "Gontcharov, Vladislav"]
[Black "Topalov, Aleksandar"]
[WhiteFideId "4123492"]
[BlackFideId "925659"]
[WhiteElo "2574"]
[BlackElo "2258"]
[Result "1-0"]
[Round "6"]
[TimeControl "180+1"]
[Date "2023.10.31"]
[WhiteClock "0:00:42"]
[BlackClock "0:00:03"]
[Board "91"]

1. d4 {[%clk 0:03:00]}  Nf6 {[%clk 0:02:58]} 2. c4 {[%clk 0:02:58]}  c5 {[%clk 0:02:54]} 3. d5 {[%clk 0:02:56]}  d6 {[%clk 0:02:52]} 4. Nc3 {[%clk 0:02:56]}  g6 {[%clk 0:02:52]} 5. e4 {[%clk 0:02:55]}  Bg7 {[%clk 0:02:52]} 6. h3 {[%clk 0:02:54]}  O-O {[%clk 0:02:51]} 7. Bd3 {[%clk 0:02:53]}  e6 {[%clk 0:02:51]} 8. Nf3 {[%clk 0:02:50]}  exd5 {[%clk 0:02:51]} 9. exd5 {[%clk 0:02:47]}  Re8+ {[%clk 0:02:50]} 10. Be3 {[%clk 0:02:46]}  Nfd7 {[%clk 0:02:50]} 11. O-O {[%clk 0:02:43]}  Ne5 {[%clk 0:02:50]} 12. Nxe5 {[%clk 0:02:43]}  Bxe5 {[%clk 0:02:49]} 13. Qc2 {[%clk 0:02:41]}  f5 {[%clk 0:02:49]} 14. Qd2 {[%clk 0:02:30]}  Nd7 {[%clk 0:02:43]} 15. Rae1 {[%clk 0:02:28]}  Bf6 {[%clk 0:02:30]} 16. Kh1 {[%clk 0:02:17]}  Ne5 {[%clk 0:02:28]} 17. Be2 {[%clk 0:02:16]}  Bd7 {[%clk 0:02:28]} 18. f4 {[%clk 0:02:10]}  Nf7 {[%clk 0:02:26]} 19. g4 {[%clk 0:02:10]}  fxg4 {[%clk 0:02:18]} 20. hxg4 {[%clk 0:01:59]}  Bxc3 {[%clk 0:02:07]} 21. Qxc3 {[%clk 0:01:58]}  Bxg4 {[%clk 0:02:07]} 22. Kg2 {[%clk 0:01:50]}  Bxe2 {[%clk 0:02:05]} 23. Rxe2 {[%clk 0:01:50]}  Nh6 {[%clk 0:02:00]} 24. Rfe1 {[%clk 0:01:46]}  Nf5 {[%clk 0:01:57]} 25. Bf2 {[%clk 0:01:46]}  Rxe2 {[%clk 0:01:35]} 26. Rxe2 {[%clk 0:01:45]}  Qf8 {[%clk 0:01:33]} 27. Re6 {[%clk 0:01:39]}  Re8 {[%clk 0:01:31]} 28. Qe1 {[%clk 0:01:32]}  Re7 {[%clk 0:01:02]} 29. Qa5 {[%clk 0:01:22]}  Qe8 {[%clk 0:00:31]} 30. Qxa7 {[%clk 0:01:09]}  Rxe6 {[%clk 0:00:31]} 31. dxe6 {[%clk 0:01:09]}  Qxe6 {[%clk 0:00:29]} 32. Qb8+ {[%clk 0:01:09]}  Kg7 {[%clk 0:00:25]} 33. Qxb7+ {[%clk 0:01:09]}  Kh6 {[%clk 0:00:25]} 34. Qf3 {[%clk 0:00:47]}  Qxc4 {[%clk 0:00:22]} 35. Qh3+ {[%clk 0:00:47]}  Kg7 {[%clk 0:00:21]} 36. Qc3+ {[%clk 0:00:48]}  Qxc3 {[%clk 0:00:21]} 37. bxc3 {[%clk 0:00:49]}  Kf7 {[%clk 0:00:20]} 38. a4 {[%clk 0:00:48]}  Ke6 {[%clk 0:00:20]} 39. c4 {[%clk 0:00:47]}  d5 {[%clk 0:00:19]} 40. a5 {[%clk 0:00:47]}  d4 {[%clk 0:00:11]} 41. a6 {[%clk 0:00:47]}  Ne7 {[%clk 0:00:10]} 42. a7 {[%clk 0:00:46]}  d3 {[%clk 0:00:05]} 43. a8=Q {[%clk 0:00:44]}  d2 {[%clk 0:00:03]} 44. Qe4+ {[%clk 0:00:42]} 1-0


[Site "https://www.chess.com"]

[Event "Titled Tuesday Blitz October 31 Early 2023"]
[White "Xtrmntr78"]
[Black "Tsyhanchuk, Stanislav"]
[BlackFideId "13505130"]
[WhiteElo "2657"]
[BlackElo "2416"]
[Result "1-0"]
[Round "6"]
[TimeControl "180+1"]
[Date "2023.10.31"]
[WhiteClock "0:00:34"]
[BlackClock "0:00:00"]
[Board "95"]

1. c4 {[%clk 0:03:00]}  Nf6 {[%clk 0:02:58]} 2. Nc3 {[%clk 0:02:58]}  c5 {[%clk 0:02:56]} 3. Nf3 {[%clk 0:02:58]}  e6 {[%clk 0:02:43]} 4. d4 {[%clk 0:02:57]}  cxd4 {[%clk 0:02:42]} 5. Nxd4 {[%clk 0:02:55]}  d5 {[%clk 0:02:41]} 6. cxd5 {[%clk 0:02:53]}  Nxd5 {[%clk 0:02:30]} 7. Bd2 {[%clk 0:02:51]}  Bc5 {[%clk 0:02:25]} 8. Nb3 {[%clk 0:02:48]}  Bb6 {[%clk 0:02:12]} 9. e4 {[%clk 0:02:38]}  Nf6 {[%clk 0:01:51]} 10. e5 {[%clk 0:02:18]}  Nfd7 {[%clk 0:01:41]} 11. Qg4 {[%clk 0:02:17]}  g6 {[%clk 0:01:12]} 12. f4 {[%clk 0:02:11]}  Nc6 {[%clk 0:01:09]} 13. O-O-O {[%clk 0:02:09]}  a6 {[%clk 0:00:53]} 14. Ne4 {[%clk 0:02:06]}  Bc7 {[%clk 0:00:52]} 15. Bc3 {[%clk 0:01:59]}  O-O {[%clk 0:00:46]} 16. h4 {[%clk 0:01:55]}  h5 {[%clk 0:00:28]} 17. Qf3 {[%clk 0:01:48]}  Qe7 {[%clk 0:00:23]} 18. g4 {[%clk 0:01:45]}  Ndxe5 {[%clk 0:00:16]} 19. fxe5 {[%clk 0:01:43]}  Nxe5 {[%clk 0:00:17]} 20. Bxe5 {[%clk 0:01:39]}  Bxe5 {[%clk 0:00:16]} 21. gxh5 {[%clk 0:01:39]}  Bd7 {[%clk 0:00:09]} 22. hxg6 {[%clk 0:01:37]}  Rac8+ {[%clk 0:00:06]} 23. Kb1 {[%clk 0:01:36]}  f5 {[%clk 0:00:06]} 24. Rxd7 {[%clk 0:01:00]}  Qxd7 {[%clk 0:00:05]} 25. Nec5 {[%clk 0:01:01]}  Qe7 {[%clk 0:00:02]} 26. Qxb7 {[%clk 0:00:48]}  Qxb7 {[%clk 0:00:01]} 27. Nxb7 {[%clk 0:00:48]}  Rfd8 {[%clk 0:00:02]} 28. Bxa6 {[%clk 0:00:42]}  Rd7 {[%clk 0:00:01]} 29. N7c5 {[%clk 0:00:41]}  Rxc5 {[%clk 0:00:01]} 30. Nxc5 {[%clk 0:00:41]}  Rd2 {[%clk 0:00:00]} 31. Nd3 {[%clk 0:00:34]} 1-0


[Site "https://www.chess.com"]